Cogmind - Beta 11 X6 *** ADVENTURER MODE // 2021.08.01 @ 14:27:46 Player: Salamander Result: Destroyed by as-07143 with Assembled Blade Performance ------------- Evolutions (0) 0 Regions Visited (2) 400 Robots Destroyed (22) 110 Value Destroyed (671) 671 Prototype IDs (3) 60 Alien Tech Used (0) 0 Bonus (-45) -45 TOTAL SCORE: 1196 Bonus ------- Friendly Fire -45 Cogmind --------- Core Integrity 0/250 Matter 185/300 Energy 248/250 System Corruption 1% Temperature Cool (6) Movement Walking (200) Ox1 Location -10/Mines Parts ------- > --- POWER (1) -------- Ion Engine > --- PROPULSION (2) --- Aluminum Leg Aluminum Leg > --- UTILITY (2) ------ Large Storage Unit Light Armor Plating > --- WEAPON (2) ------- Light Assault Rifle Light Assault Rifle > --- INVENTORY (15) --- Ion Engine Aluminum Leg Aluminum Leg Combat Airjet Combat Airjet Medium Storage Unit Light Armor Plating EM Pulse Gun Rocket Launcher Mining Claw Peak State ------------ > --- POWER ------------ Ion Engine > --- PROPULSION ------- Aluminum Leg Aluminum Leg > --- UTILITY ---------- Large Storage Unit Light Armor Plating > --- WEAPON ----------- Light Assault Rifle Rocket Launcher > --- INVENTORY -------- Ion Engine Aluminum Leg Aluminum Leg Aluminum Leg Aluminum Leg Medium Storage Unit Light Armor Plating Light Armor Plating Light Armor Plating EM Pulse Gun Light Assault Rifle Light Assault Rifle Light Assault Rifle Light Assault Rifle Mining Claw [Rating: 9] Favorites ----------- Power Ion Engine Engine Ion Engine Propulsion Aluminum Leg Leg Aluminum Leg Utility Large Storage Unit Device Tractor Beam Storage Large Storage Unit Protection Light Armor Plating Weapon Light Assault Rifle Ballistic Gun Light Assault Rifle Launcher Rocket Launcher Build | -11 -10 -10 ------- Run | Scr Mat Min Slots Evolved . | . . . Power . | . . . Propulsion . | . . . Utility . | . . . Weapon . | . . . Parts Attached 23 | 6 8 9 Power 2 | 1 1 . Engine 2 | 1 1 . Core . | . . . Reactor . | . . . Propulsion 6 | 2 2 2 Treads . | . . . Leg 6 | 2 2 2 Wheel . | . . . Hover . | . . . Flight . | . . . Utility 6 | 1 3 2 Device 1 | . 1 . Storage 2 | 1 1 . Processor . | . . . Hackware . | . . . Protection 3 | . 1 2 Artifact . | . . . Weapon 9 | 2 2 5 Energy Gun . | . . . Energy Cannon . | . . . Ballistic Gun 8 | 2 2 4 Ballistic Cannon . | . . . Launcher 1 | . . 1 Special Weapon . | . . . Impact Weapon . | . . . Slashing Weapon . | . . . Piercing Weapon . | . . . Special Melee Weapon . | . . . Unidentified Prototypes . | . . . Parts Lost 10 | . 3 7 Power 1 | . 1 . Propulsion 2 | . . 2 Utility 2 | . . 2 Weapon 5 | . 2 3 Highest Loss Streak 7 | . 3 7 Average Slot Usage (%) 97 | . 98 95 Engine 13 | . 13 14 Leg 27 | . 28 25 Device 4 | . 5 . Storage 14 | . 14 14 Protection 7 | . 7 14 Ballistic Gun 27 | . 27 24 Naked Turns . | . . . Heaviest Build 33 | 10 30 33 Greatest Support 20 | 20 20 20 Greatest Overweight (x) 1 | . 1 1 Average Overweight (x) . | . . 1 Largest Inventory Capacity 15 | 8 15 15 Average Capacity 13 | 7 13 15 Most Carried 15 | 2 15 15 Average Carried 11 | 1 11 11 Final Capacity 15 | 8 15 15 Final Carried 15 | 2 15 10 Class Distribution -------------------- 100% | Mutant Dominant Class ---------------- Mutant | -10/Materials Mutant | -10/Mines Resources | -11 -10 -10 ----------- Run | Scr Mat Min Matter Collected 530 | 260 218 52 Remotely 150 | . 150 . Salvage Created 899 | . 746 153 Parts 55 | . 52 3 Haulers Intercepted . | . . . Recyclers Shooed . | . . . Parts Field Recycled . | . . . Retrieved Matter . | . . . Parts Self-Destructed . | . . . Prevented . | . . . Kills | -11 -10 -10 ------- Run | Scr Mat Min Combat Hostiles Destroyed 33 | . 17 16 Guns 21 | . 17 4 AOE 12 | . . 12 Classes Destroyed 6 | . 4 2 Worker 1 | . 1 . Watcher 2 | . 2 . Swarmer 3 | . 3 . Grunt 14 | . 14 . Demolisher 2 | . . 2 Assembled 14 | . . 14 Best Kill Streak 12 | . 6 12 Combat Bots Only 12 | . 6 12 Max Kills in Single Turn 4 | . 2 4 Gunslinging 1 | . 1 . Exploded 4 | . . 4 Melee . | . . . Uniques/NPCs Destroyed . | . . . Combat | -11 -10 -10 -------- Run | Scr Mat Min Damage Taken 1533 | . 560 973 Core 254 | . 105 149 Absorbed by Shields . | . . . Core Remaining (%) 100 | 100 . . Volleys Fired 104 | . 74 30 Largest 2 | . 2 2 Hottest 40 | . 40 40 Shots Fired 197 | . 145 52 Gun 191 | . 145 46 Cannon . | . . . Launcher 6 | . . 6 Special . | . . . Kinetic 191 | . 145 46 Thermal . | . . . Explosive 6 | . . 6 Electromagnetic . | . . . Robot Hit Streak 21 | . 21 15 Robot Miss Streak 2 | . 2 2 Penetration Max . | . . . Secondary Targets 3 | . 2 1 Max Gunslinging Chain 1 | . 1 1 Shots Hit Robots 159 | . 117 42 Core Hits 86 | . 46 40 Critical Kills . | . . . Critical Parts Destroyed . | . . . Critical Strikes . | . . . Melee Attacks . | . . . Impact . | . . . Slashing . | . . . Piercing . | . . . Sneak Attacks . | . . . Combat Hostiles . | . . . Follow-up Attacks . | . . . Damage Inflicted 1927 | . 937 990 Guns 1243 | . 937 306 Cannons . | . . . Explosions 684 | . . 684 Melee . | . . . Ramming . | . . . Kinetic 1243 | . 937 306 Thermal . | . . . Explosive 684 | . . 684 Electromagnetic . | . . . Impact . | . . . Slashing . | . . . Piercing . | . . . Highest Corruption 1 | . 1 1 Average Corruption 1 | . 1 1 Corruption Purged . | . . . Effects 1 | . 1 . Energy Discharges 1 | . 1 . Overload Shots . | . . . Overflow Damage 15 | . . 15 Projectiles . | . . . Explosions 15 | . . 15 Melee . | . . . Knockbacks . | . . . Impact . | . . . Kinetic . | . . . Secondary . | . . . Self-Inflicted Damage 70 | . . 70 Shots 3 | . . 3 Rammed . | . . . Targets Rammed . | . . . Kicked . | . . . Crushed . | . . . Highest Temperature 54 | . 54 50 Average Temperature 13 | . 13 13 Received Heat Transfer 531 | . 411 120 Siege Activations . | . . . Robots Corrupted . | . . . Combat Hostiles . | . . . Parts Fried . | . . . Impact Corruptions . | . . . Robots Melted . | . . . Combat Hostiles . | . . . Parts Melted . | . . . Heat Transferred . | . . . Parts Sabotaged . | . . . Parts Stolen . | . . . Parts Stripped . | . . . Power Chain Reactions . | . . . Missiles Intercepted . | . . . Alert | -11 -10 -10 ------- Run | Scr Mat Min Peak Influence 290 | . 290 45 Initial . | . . . Average 124 | . 139 15 Maximum Alert Level 1 | . 1 . Low Security (%) 70 | 100 66 100 Level 1 29 | . 33 . Level 2 . | . . . Level 3 . | . . . Level 4 . | . . . Level 5 . | . . . High Security . | . . . Max Security . | . . . Squads Dispatched 3 | . 3 . Investigation 3 | . 3 . Extermination . | . . . Reinforcement . | . . . Assault . | . . . Garrison . | . . . Intercept . | . . . Construction Impeded . | . . . Haulers Reinforced . | . . . Active Scanning Responses . | . . . Cargo Convoy Interrupts . | . . . Stealth | -11 -10 -10 --------- Run | Scr Mat Min Distress Signals 3 | . 3 . Communications Jammed . | . . . Distress Signals . | . . . Times Spotted 42 | . 28 14 Peak Tracking Total 8 | . 7 8 Tactical Retreats . | . . . Traps | -11 -10 -10 ------- Run | Scr Mat Min Traps Triggered 1 | . 1 . Indirectly . | . . . Trap Hack Attempts . | . . . Triggered . | . . . Disarmed . | . . . Reprogrammed . | . . . Reused . | . . . Traps Extracted . | . . . Installed . | . . . Triggered . | . . . Machines | -11 -10 -10 ---------- Run | Scr Mat Min Machines Disabled . | . . . Max in Single Turn . | . . . Machines Sabotaged . | . . . Garrisons Compromised . | . . . Overloaded Fab Kills . | . . . Fab Network Shutdowns . | . . . Hacking | -11 -10 -10 --------- Run | Scr Mat Min Machines Accessed 10 | . 10 . Terminals 8 | . 8 . Fabricators . | . . . Repair Stations . | . . . Recycling Units 2 | . 2 . Scanalyzers . | . . . Garrison Access . | . . . Total Hacks 28 | . 28 . Successful 20 | . 20 . Failed 8 | . 8 . Catastrophic . | . . . Database Lockouts . | . . . Manual 15 | . 15 . Terminals 26 | . 26 . Fabricators . | . . . Repair Stations . | . . . Recycling Units 2 | . 2 . Scanalyzers . | . . . Garrison Access . | . . . Terminal Hacks 12 | . 12 . Robot Analysis 5 | . 5 . Prototype ID Bank 3 | . 3 . Terminal Index 1 | . 1 . Locate Traps 2 | . 2 . Hauler Manifests 1 | . 1 . Fabricator Hacks . | . . . Repair Station Hacks . | . . . Recycling Unit Hacks . | . . . Scanalyzer . | . . . Garrison Access Hacks . | . . . Unauthorized Hacks 8 | . 8 . Terminals 6 | . 6 . Track 2 | . 2 . Botnet 4 | . 4 . Fabricators . | . . . Repair Stations . | . . . Recycling Units 2 | . 2 . Tunnel 2 | . 2 . Scanalyzers . | . . . Garrison Access . | . . . Data Cores Recovered . | . . . Used . | . . . Hacking Detections 8 | . 8 . Full Trace Events 1 | . 1 . Feedback Events . | . . . Feedback Blocked . | . . . Robot Schematics Acquired . | . . . Robots Built . | . . . Matter . | . . . Time . | . . . Total Robot Build Rating . | . . . Part Schematics Acquired . | . . . Parts Built . | . . . Matter . | . . . Time . | . . . Total Part Build Rating . | . . . Parts Repaired . | . . . Time . | . . . Parts Recycled . | . . . Recycled Matter . | . . . Retrieved Matter . | . . . Retrieved Components . | . . . Parts Scanalyzed . | . . . Part Schematics Acquired . | . . . Parts Damaged . | . . . Bothacking | -11 -10 -10 ------------ Run | Scr Mat Min Used RIF Installer . | . . . Robots Hacked . | . . . Non-combat . | . . . Combat . | . . . Robot Hacks Applied . | . . . Relay Couplers Released . | . . . Robots Rewired . | . . . Allies Hacked . | . . . Hacks Repelled . | . . . Allies | -11 -10 -10 -------- Run | Scr Mat Min Total Allies . | . . . Largest Group . | . . . Highest-Rated Group . | . . . Highest-Rated Ally . | . . . Total Orders . | . . . Ally Attacks . | . . . Total Damage . | . . . Kills . | . . . Allies Corrupted . | . . . Allies Melted . | . . . Intel | -11 -10 -10 ------- Run | Scr Mat Min Robot Analysis Total 5 | . 5 . Derelict Logs Recovered . | . . . Drone Launches . | . . . Drone Recoveries . | . . . Exploration | -11 -10 -10 ------------- Run | Scr Mat Min Turns Passed 1537 | 56 1350 131 Spaces Moved 663 | 37 604 22 Core 2 | 2 . . Treads . | . . . Legs 661 | 35 604 22 Wheels . | . . . Hover . | . . . Flight . | . . . Fastest Speed 50 | 50 120 200 Average Speed 180 | 116 183 200 Slowest Speed 200 | 120 200 200 Overloaded Moves . | . . . Propulsion Burnouts . | . . . Robots Hopped . | . . . Cave-ins Triggered . | . . . Exploration Rate (%) 39 | 4 97 18 Regions Visited 2 Branch Regions 1 Pre-discovered Areas 2 | . 2 . Known Exits Taken . | . . . Unknown Exits Taken 2 | 1 1 . Scrap Searched . | . . . Spaces Dug . | . . . Terrain Destroyed 55 | . . 55 Melee . | . . . Projectile . | . . . AOE 55 | . . 55 Terrain Rammed . | . . . Walls Destroyed . | . . . Machines Disabled . | . . . Actions | -11 -10 -10 --------- Run | Scr Mat Min Total 847 | 47 732 68 Wait 34 | 3 27 4 Move 661 | 36 603 22 Hop . | . . . Pick Up 20 | 2 16 2 Fast Attach 9 | 6 2 1 Attach 10 | . 3 7 Detach . | . . . Swap 4 | . 3 1 Drop 5 | . 4 1 Fire 104 | . 74 30 Melee . | . . . Ram . | . . . Kick . | . . . Crush . | . . . Escape Stasis . | . . . Rewire . | . . . Trap . | . . . Miscellaneous . | . . . Route ------- -11/Scrapyard -10/Materials (discovered 5 exits: [*Mat x3] / [*Min x2]) -10/Mines History --------- Turn | Location | Event 5 | -11/Scrapyard | Discovered new exit (range 15) 57 | -11/Scrapyard | Entered Materials 291 | -10/Materials | Discovered new exit (range 15) 304 | -10/Materials | Build established: Mutant 380 | -10/Materials | Discovered new exit (range 7) 540 | -10/Materials | Lost 3 parts (1p2w) 796 | -10/Materials | Discovered new exit (range 14) 1090 | -10/Materials | Discovered new exit (range 9) 1275 | -10/Materials | Discovered new exit (range 16) 1407 | -10/Materials | Entered Mines 1408 | -10/Mines | Assembled infested the area 1413 | -10/Mines | Assisted by a Guerilla fighting off Assembled 1418 | -10/Mines | Received a Rocket Launcher from a helpful Derelict 1444 | -10/Mines | Core integrity fell below 50% 1455 | -10/Mines | Destroyed 12 combat bots 1473 | -10/Mines | Core integrity fell below 20% 1510 | -10/Mines | Lost 7 parts (2n2u3w) 1538 | -10/Mines | Destroyed by as-07143 with Assembled Blade Last Messages --------------- 01487_ U-05 Engineer builds a Wall. 01487_ R-06 Scavenger collects Welding Torch. 01488_ The unstable cave ceiling collapses. 01488_ K-01 Serf collects debris. 01490_ The unstable cave ceiling collapses. 01495_ Acquired Cmb. Airjet. 01497_ The unstable cave ceiling collapses. 01506_ as-23407 destroyed. 01507_ The unstable cave ceiling collapses. 01508_ U-05 Engineer builds a Wall. 01508_ Acquired 52 matter. 01512_ U-05 Engineer builds a Wall. 01512_ Acquired Cmb. Airjet. 01516_ U-05 Engineer lays Concrete. 01517_ U-05 Engineer builds a Wall. 01522_ The unstable cave ceiling collapses. 01522_ R-06 Scavenger collects Structural Scanner. 01527_ R-06 Scavenger collects Lgt. Ion Engine. 01529_ K-01 Serf collects debris. 01538_ as-41286 destroyed. Map ----- +----------------------------------------------------+ | ?????????????????????????????????????????? | | ????????????????????????? #????????????? | | ???????????????????????# ????????????? | | ???????????????????????# ????????????? | | ???????????????????????# ##??????????? | | ???????????????????????# ##?????????? | | ???????????????????????+ ##????????? | | ???????????????????????+ #??####??? | | ???????????????????????# ### #??? | | ???????????????????????# # #??? | | ????????????????????????# # #??? | | ????????????????????????## #??? | | ????????????????? ##### ##??? | | ????????????????? # #??? | | ????????????????????????## ## # #??? | | ???????????????????????# #%%| #???? | | ???????????????????????###% # # # #???? | | ?????????????#?????????### #! # ##???? | | ???????????? #####???# %!%### # k #???? | | ???????????? #??###r #???? | | ???????????? #?## # % ##??? | | ??????????? ## #??? | | ??????????? #??? | | ??????????? % ###??? | | ??????????? ### ###????? | | ???????????? ??????## @ #?????? | | ????????????????????### a% #?????? | | ??????????????????????## ### #?????? | | ???????????????????????# #?## #????? | | ???????????????????????# #??? #???? | | ???????????????????????# #???# " #??? | | ???????????????????????# $#????# #??? | | ???????????????????????# #?????# #??? | | ???????????????????????# #??????# #??? | | ???????????????????????# ???????? ???? | | ???????????????????????# ????????? ???? | | ??????????????????????? ???????????????? | | ??????????????????????? ""???????????????? | | ??????????????????????? ""???????????????? | | ??????????????????????? ?????????????????? | | ??????????????????????? ?????????????????? | | ?????????????????????????????????????????? | | ?????????????????????????????????????????? | | ?????????????????????????????????????????? | | ?????????????????????????????????????????? | | ?????????????????????????????????????????? | | ?????????????????????????????????????????? | | ?????????????????????????????????????????? | | ?????????????????????????????????????????? | | ?????????????????????????????????????????? | +----------------------------------------------------+ Best States ------------- Heat Dissipation 25 Energy Generation 10 Energy Capacity 250 Matter Stores 300 Matter Capacity 300 Sight Range 16 Terrain Scan Density 10 Armor Coverage 150 Resistance: KI 20 Resistance: TH 20 Resistance: EX 20 Resistance: EM 20 Resistance: I 20 Resistance: S 20 Resistance: P 20 Evasion (%) 55 Offensive Hacking 10 Item Schematics ----------------- None Robot Schematics ------------------ None Fabricated ------------ Nothing Alien Tech Used ----------------- None Achievements -------------- None Challenges ------------ None Game ------ Seed TitaniumSensorShielding Manual? 0 Play Time 00:13:16 Cumulative 113.0 hours Start 2021.08.01 @ 14:12:47 End 2021.08.01 @ 14:27:46 Sessions 1 Manual Loads 0 Difficulty Adventurer Special Mode None Game No. 93 Rogue 14 Adventurer 77 Explorer 2 Win Type - Total 5 Types 3/0/1/0/0/0/0/1/0 Lore% 67 Gallery% 73 Achievement% 67 Wizard Run 0 Options --------- ASCII 0 Keyboard 0 Movement Mouse Keybinds 0 Fullscreen 1 Font 12/Smallcaps Map View 83x54 Tactical HUD 1 Map Filters NONE Filters NONE Steam 1 RUN: 7923aacd-1646-428c-98f9-78d8ceecd766